Cogmind - Beta 10.2 @@@ ROGUE MODE // 2021.12.03 @ 20:57:05 Player: DaddyWalrus Result: Destroyed by Y-72 Warden with Quantum Rifle Performance ------------- Evolutions (7) 3500 Regions Visited (20) 4000 Robots Destroyed (274) 1370 Value Destroyed (13102) 13102 Prototype IDs (56) 1120 Alien Tech Used (0) 0 Bonus (6132) 6132 TOTAL SCORE: 29224 Bonus ------- High Alert Combat Kills 2931 Follower Combat Kills 822 Entered Garrisons 600 Used RIF Installer 1500 Aligned with FarCom 300 Met Data Miner 300 Friendly Fire -321 Cogmind --------- Core Integrity 0/1300 Matter 65/300 Energy 85/100 System Corruption 69% Temperature Cool (9) Movement Core (50) Location -3/Research Parts ------- > --- POWER (2) -------- (None) > --- PROPULSION (5) --- (None) > --- UTILITY (10) ----- Advanced Coolant Injector > --- WEAPON (4) ------- (None) > --- INVENTORY (4) ---- Matter Compressor (0) Advanced Component Analysis Suite Improved Recalibrator Advanced Remote Datajack Peak State ------------ > --- POWER ------------ Reinforced Antimatter Reactor Light Particle Reactor > --- PROPULSION ------- Armored Medium Treads Advanced Heavy Treads Centrium Heavy Treads > --- UTILITY ---------- Advanced Heat Sink Advanced Heat Sink Advanced Coolant Injector Large Storage Unit Large Storage Unit Advanced Targeting Computer Advanced Core Analyzer Particle Accelerator Centrium Heavy Armor Plating > --- WEAPON ----------- Phase Gun Compact Mass Driver Compact Mass Driver Compact Mass Driver > --- INVENTORY -------- Light Ion Engine Armored Medium Treads Armored Medium Treads Matter Compressor Advanced Target Analyzer Relay Coupler [Swarmer] Advanced Component Analysis Suite Improved Recalibrator Gamma Rifle Plasma Rifle Fusion Bomb Launcher Advanced Remote Datajack [Rating: 152] Favorites ----------- Power Light Antimatter Reactor Engine Angular Momentum Engine Power Core Neutrino Core Reactor Light Antimatter Reactor Propulsion Improved Medium Treads Treads Improved Medium Treads Wheel Wheel Utility Large Storage Unit Device Experimental Heat Sink Storage Large Storage Unit Processor Advanced Targeting Computer Hackware Hacking Suite Protection Improved Heavy Armor Plating Weapon Coil Gun Energy Gun Wave Gun Energy Cannon Heavy Ion Cannon Ballistic Gun Coil Gun Ballistic Cannon Enhanced Gauss Cannon Launcher Rocket Launcher Special Weapon Improved Remote Datajack Impact Weapon Flail Slashing Weapon Segregator Piercing Weapon Lance Special Melee Weapon Datajack Build | -11 -10 -10 -9 -9 -9 -8 -8 -8 -7 -7 -7 -7 -6 -6 -5 -5 -4 -4 -4 -3 ------- Run | Scr Mat Min Mat Min Exi Min Mat Gar Fac Low Low Dat Pro Fac Fac Gar Fac Gar Fac Res Slots Evolved 14 | . . . 2 . . . 2 . 2 . . . . 2 2 . 2 . . 2 Power 1 | . . . . . . . . . . . . . . . . . . . . 1 Propulsion 3 | . . . . . . . 1 . . . . . . 1 . . . . . 1 Utility 8 | . . . . . . . 1 . 2 . . . . 1 2 . 2 . . . Weapon 2 | . . . 2 . . . . . . . . . . . . . . . . . Parts Attached 307 | 7 17 3 15 4 6 1 10 22 10 7 5 2 3 34 5 23 14 16 16 87 Power 34 | 1 2 . 2 2 . . 1 1 1 2 . . 1 3 . . 1 . 2 15 Engine 18 | 1 2 . 2 2 . . 1 1 1 1 . . 1 3 . . . . . 3 Core 1 | . . . . . . . . . . 1 . . . . . . . . . . Reactor 15 | . . . . . . . . . . . . . . . . . 1 . 2 12 Propulsion 49 | 2 2 1 1 . . . 4 4 . . . . . 9 1 2 . 1 3 19 Treads 35 | . . . . . . . 1 1 . . . . . 7 1 2 . 1 3 19 Leg . | . . . . . . . . . . . . . . . . . . . . . Wheel 14 | 2 2 1 1 . . . 3 3 . . . . . 2 . . . . . . Hover . | . . . . . . . . . . . . . . . . . . . . . Flight . | . . . . . . . . . . . . . . . . . . . . . Utility 79 | 2 2 . 2 . 2 . 2 3 5 . . . . 8 3 9 8 6 4 23 Device 32 | . . . . . . . . 1 . . . . . 3 1 5 5 2 1 14 Storage 10 | 2 2 . 2 . 2 . . . . . . . . . 1 1 . . . . Processor 7 | . . . . . . . . . 1 . . . . . 1 . 1 . 1 3 Hackware 14 | . . . . . . . 1 . 1 . . . . 2 . 2 1 4 1 2 Protection 16 | . . . . . . . 1 2 3 . . . . 3 . 1 1 . 1 4 Artifact . | . . . . . . . . . . . . . . . . . . . . . Weapon 145 | 2 11 2 10 2 4 1 3 14 4 5 5 2 2 14 1 12 5 9 7 30 Energy Gun 28 | 2 . . 2 1 . . 1 . . 1 2 1 1 3 . 1 3 2 2 6 Energy Cannon 6 | . . . . . . . . . . . 1 . . . . 1 1 . 1 2 Ballistic Gun 31 | . 3 . 4 . 1 . 1 5 2 1 1 . . 4 . 5 . 2 1 1 Ballistic Cannon 28 | . 5 . 1 . 1 . . . . . . . . 4 1 . . 1 1 14 Launcher 25 | . 3 2 1 1 1 1 1 5 . 2 1 . 1 2 . . . . . 4 Special Weapon 15 | . . . 2 . . . . . 2 . . 1 . 1 . 3 . 2 2 2 Impact Weapon 3 | . . . . . . . . 3 . . . . . . . . . . . . Slashing Weapon 7 | . . . . . . . . 1 . 1 . . . . . 2 1 2 . . Piercing Weapon 1 | . . . . . . . . . . . . . . . . . . . . 1 Special Melee Weapon 1 | . . . . . 1 . . . . . . . . . . . . . . . Unidentified Prototypes 1 | . . . . . . . . . . . . . . 1 . . . . . . Parts Lost 46 | . . 2 . 1 . . 1 . . 2 . . 1 4 . . 1 1 . 33 Power 8 | . . . . . . . . . . 2 . . . . . . . . . 6 Propulsion 10 | . . 1 . . . . 1 . . . . . . . . . . 1 . 7 Utility 15 | . . . . . . . . . . . . . . 1 . . 1 . . 13 Weapon 13 | . . 1 . 1 . . . . . . . . 1 3 . . . . . 7 Highest Loss Streak 9 | . . 2 . 1 . . 1 . . 2 . . 1 2 . . 1 1 . 9 Average Slot Usage (%) 91 | . 100 99 100 99 92 77 81 80 83 83 95 100 100 94 93 94 88 93 93 83 Engine 6 | . 14 14 11 11 11 11 9 9 7 6 7 7 7 6 5 5 2 . . . Reactor 1 | . . . . . . . . . . . . . . . . . 2 5 5 6 Treads 13 | . . . . . . . 7 9 7 7 7 7 7 23 22 23 21 20 20 17 Wheel 9 | . 28 27 22 22 22 22 19 17 15 15 15 15 15 2 . . . . . . Device 6 | . . . . . . . . 1 7 7 7 7 7 5 11 8 14 16 16 9 Storage 14 | . 28 28 22 22 22 22 18 18 15 15 15 15 15 13 11 11 10 10 10 8 Processor 7 | . . . . . . . . . 7 7 7 7 7 6 11 11 11 15 16 15 Hackware 1 | . . . . . . . 6 . . . . . . 2 . 2 . 3 . . Protection 3 | . . . . . . . 2 6 5 7 7 7 7 6 5 5 3 . 2 3 Energy Gun 4 | . 7 . 7 5 . . 7 . . . 6 15 7 6 . . 5 4 10 2 Energy Cannon 1 | . . . . . . . . . . . 5 7 7 1 . 1 4 2 . 1 Ballistic Gun 7 | . 9 8 24 27 14 1 . 2 5 1 5 7 7 10 14 6 5 4 4 . Ballistic Cannon 6 | . 10 . 9 . 3 11 9 9 7 7 1 . . 5 7 10 4 4 4 11 Launcher 2 | . . 19 1 11 7 9 1 5 . 5 4 . 6 1 . . . . . . Naked Turns . | . . . . . . . . . . . . . . . . . . . . . Heaviest Build 133 | 17 26 27 52 51 99 101 110 111 112 116 112 65 66 86 90 93 95 81 103 133 Greatest Support 182 | 20 20 26 26 26 26 26 42 23 23 22 23 22 23 120 120 120 106 106 106 182 Greatest Overweight (x) 8 | . 1 1 1 1 3 3 4 8 5 5 5 2 2 2 . . . 1 . 1 Average Overweight (x) 1 | . . 1 1 1 1 3 2 4 4 4 2 2 2 . . . . . . . Largest Inventory Capacity 16 | 8 12 12 16 16 16 16 16 16 16 16 16 16 16 16 16 16 16 16 16 16 Average Capacity 15 | 6 11 12 13 16 16 16 16 16 16 16 16 16 16 16 16 16 16 16 16 15 Most Carried 16 | 7 12 12 16 16 16 16 16 16 16 16 16 16 16 16 16 16 16 16 16 16 Average Carried 15 | 4 11 11 12 15 16 16 15 15 15 15 15 16 15 15 15 15 15 15 15 14 Final Capacity 16 | 8 12 12 16 16 16 16 16 16 16 16 16 16 16 16 16 16 16 16 16 4 Final Carried 16 | 7 12 10 15 16 16 16 16 16 16 15 16 16 15 16 16 16 15 15 16 4 Class Distribution -------------------- 23% | Scavenger-Gunner 14% | Gunner 14% | Bothacker-Gunner 12% | Mutant 12% | Bothacker-Skirmisher 7% | Skirmisher 6% | Scavenger-Mutant Dominant Class ---------------- Mutant | -10/Materials Mutant | -10/Mines Scavenger-Gunner | -9/Materials Scavenger-Gunner | -9/Mines Scavenger-Mutant | -9/Exiles Mutant | -8/Mines Scavenger-Skirmisher | -8/Materials Skirmisher | -8/Garrison Bothacker-Skirmisher | -7/Factory Bothacker-Gunner | -7/Lower Caves Bothacker-Gunner | -7/Lower Caves Bothacker-Gunner | -7/Data Miner Bothacker-Gunner | -6/Proximity Caves Bothacker-Skirmisher | -6/Factory Gunner | -5/Factory Gunner | -5/Garrison Bothacker-Gunner | -4/Factory Scavenger-Gunner | -4/Garrison Scavenger-Gunner | -4/Factory Gunner | -3/Research Resources | -11 -10 -10 -9 -9 -9 -8 -8 -8 -7 -7 -7 -7 -6 -6 -5 -5 -4 -4 -4 -3 ----------- Run | Scr Mat Min Mat Min Exi Min Mat Gar Fac Low Low Dat Pro Fac Fac Gar Fac Gar Fac Res Matter Collected 9519 | 270 336 64 606 376 40 . 169 248 233 356 197 . 143 1044 47 808 234 401 341 3606 Remotely . | . . . . . . . . . . . . . . . . . . . . . Salvage Created 10230 | 84 371 6 567 176 . . 978 354 69 229 436 . 221 988 . 891 234 536 485 3605 Parts 445 | 2 27 . 38 13 . . 57 23 3 4 19 . 17 42 . 22 12 20 12 134 Haulers Intercepted 7 | . . . 1 . . . 4 . . . . . . . . . . . . 2 Recyclers Shooed 9 | . 1 . 2 . . . 2 . . . . . . 1 . . . . . 3 Parts Field Recycled . | . . . . . . . . . . . . . . . . . . . . . Retrieved Matter . | . . . . . . . . . . . . . . . . . . . . . Parts Self-Destructed 29 | . . . . . . . . . . 1 8 . 20 . . . . . . . Prevented 5 | . . . . . . . . . . 2 2 . 1 . . . . . . . Kills | -11 -10 -10 -9 -9 -9 -8 -8 -8 -7 -7 -7 -7 -6 -6 -5 -5 -4 -4 -4 -3 ------- Run | Scr Mat Min Mat Min Exi Min Mat Gar Fac Low Low Dat Pro Fac Fac Gar Fac Gar Fac Res Combat Hostiles Destroyed 214 | . 10 10 11 9 . . 12 28 2 4 11 . 7 15 . 17 4 9 5 60 Melee 2 | . . . . . . . . . . . . . . . . . . . . 2 Guns 56 | . 4 . 8 3 . . 1 3 . . 5 . 1 11 . 3 2 5 4 6 Cannons 106 | . 3 . 2 . . . 8 20 2 1 2 . 3 2 . 14 2 4 1 42 AOE 48 | . 3 10 1 6 . . 3 5 . 3 4 . 3 1 . . . . . 9 Classes Destroyed 19 | 1 5 1 3 . . . 1 2 1 1 1 . . 1 . 1 . . . 1 Worker 11 | . 1 . . . . . 3 . . . . . . 1 . . . . . 6 Builder 17 | . . . . . . . 1 . . . . . . . . . . . . 16 Tunneler 2 | . . . 1 . . . 1 . . . . . . . . . . . . . Hauler 7 | . . . 1 . . . 4 . . . . . . . . . . . . 2 Recycler 13 | 1 1 . 1 . . . 4 . . . . . . 1 . . . . 1 4 Mechanic 1 | . . . . . . . . . . . . . . . . . . . . 1 Operator 6 | . 2 . 1 . . . . . 1 . . . . 1 . . . . . 1 Watcher 11 | . 2 . 1 . . . 3 . . . . . . 2 . . . . 1 2 Swarmer 38 | . 3 . 4 6 . . 3 7 . 4 . . 4 4 . . . 3 . . Saboteur 6 | . . . . . . . . 6 . . . . . . . . . . . . Grunt 98 | . 7 . 2 3 . . 6 12 . . 10 . . 4 . 14 . 3 5 32 Brawler 9 | . . . . . . . . . . . . . . 1 . . . 1 . 7 Duelist 3 | . . . . . . . . . . . 1 . . . . . . . . 2 Sentry 20 | . . . 5 . . . 3 1 1 . . . 1 3 . 2 . . . 4 Hunter 11 | . . . . . . . . 2 . . . . 2 1 . . 2 2 . 2 Programmer 20 | . . . . . . . . . 1 . . . . 2 . . 2 1 . 14 Behemoth 1 | . . . . . . . . . . . . . . . . 1 . . . . Packrat 2 | . . . . . . . . . . 2 . . . . . . . . . . Samaritan 1 | . . . . . . . . . . 1 . . . . . . . . . . Assembled 10 | . . 10 . . . . . . . . . . . . . . . . . . Best Kill Streak 14 | 1 5 10 4 3 . . 4 7 3 4 4 . 4 5 . 8 2 4 3 14 Combat Bots Only 11 | . 4 10 4 3 . . 3 7 2 4 4 . 4 4 . 8 2 4 3 11 Max Kills in Single Turn 4 | 1 2 4 2 3 . . 3 2 1 2 2 . 2 3 . 1 1 2 1 4 Gunslinging . | . . . . . . . . . . . . . . . . . . . . . Exploded 4 | . 1 4 1 3 . . 2 2 . 2 1 . 2 1 . . . . . 4 Melee 1 | . . . . . . . . . . . . . . . . . . . . 1 Uniques/NPCs Destroyed . | . . . . . . . . . . . . . . . . . . . . . Combat | -11 -10 -10 -9 -9 -9 -8 -8 -8 -7 -7 -7 -7 -6 -6 -5 -5 -4 -4 -4 -3 -------- Run | Scr Mat Min Mat Min Exi Min Mat Gar Fac Low Low Dat Pro Fac Fac Gar Fac Gar Fac Res Damage Taken 20132 | . 347 276 292 332 . . 205 484 174 105 87 . 337 908 . 921 353 453 378 14480 Core 1865 | . 22 32 75 55 . . . 29 10 43 41 . 18 55 . 54 41 21 43 1326 Absorbed by Shields 245 | . . . . . . . . 26 . . . . . 139 . 80 . . . . Core Remaining (%) 87 | 100 . 78 . . . 67 . 94 . . . . 84 93 . 94 . . 90 . Volleys Fired 470 | 3 31 5 42 17 . . 43 23 6 20 15 1 11 37 . 37 10 27 18 124 Largest 4 | 2 2 2 4 4 . . 1 1 1 1 4 1 4 4 . 4 4 4 4 4 Hottest 330 | 100 100 60 149 99 . . 45 33 30 45 202 30 190 201 . 230 276 300 277 330 Shots Fired 1401 | 6 62 11 119 56 . . 62 100 12 26 47 1 43 131 . 125 40 74 55 431 Gun 599 | 6 37 4 89 50 . . 39 13 3 17 23 . 22 92 . 40 20 38 37 69 Cannon 699 | . 20 . 24 . . . 19 77 6 6 15 . 11 36 . 80 20 26 13 346 Launcher 72 | . 5 7 3 6 . . 4 10 . 3 9 . 10 2 . . . . . 13 Special 31 | . . . 3 . . . . . 3 . . 1 . 1 . 5 . 10 5 3 Kinetic 891 | . 45 4 73 50 . . 19 90 9 11 17 . 11 75 . 100 20 28 25 314 Thermal 267 | 6 12 . 14 . . . . . . . 11 . 12 30 . 20 20 36 24 82 Explosive 72 | . 5 7 3 6 . . 4 10 . 3 9 . 10 2 . . . . . 13 Electromagnetic 143 | . . . 29 . . . 39 . . 12 10 . 10 23 . . . . 1 19 Robot Hit Streak 29 | 4 10 6 8 11 . . 6 7 8 9 15 7 8 26 . 27 11 14 14 29 Robot Miss Streak 6 | 1 5 2 4 2 . . 4 3 1 6 1 . 3 4 . 3 2 4 1 2 Penetration Max 1 | . . . . . . . . . . . . . . 1 . 1 . 1 . 1 Secondary Targets . | . . . . . . . . . . . . . . . . . . . . . Autonomous 114 | . . . . . . . 19 77 6 6 6 . . . . . . . . . Shots Hit Robots 961 | 5 40 7 60 26 4 . 41 72 11 17 30 1 23 97 . 94 24 60 38 311 Core Hits 566 | 2 31 22 26 14 . . 30 32 3 13 23 . 16 64 . 60 8 20 14 188 Critical Hits 57 | . 1 . . . . . . 3 . . . . . 5 . 4 2 6 1 35 Critical Kills 20 | . . . . . . . . 1 . . . . . 2 . 1 1 2 . 13 Critical Parts Destroyed 34 | . 1 . . . . . . 2 . . . . . 3 . 3 1 4 1 19 Melee Attacks 35 | . . . . . 4 . . 5 . 9 . . . . . 2 1 1 . 13 Thermal 13 | . . . . . . . . 2 . 9 . . . . . 2 . . . . Impact 3 | . . . . . . . . 3 . . . . . . . . . . . . Slashing 2 | . . . . . . . . . . . . . . . . . 1 1 . . Piercing 13 | . . . . . . . . . . . . . . . . . . . . 13 Sneak Attacks 4 | . . . . . 4 . . . . . . . . . . . . . . . Combat Hostiles . | . . . . . . . . . . . . . . . . . . . . . Follow-up Attacks . | . . . . . . . . . . . . . . . . . . . . . Damage Inflicted 36785 | 76 833 689 919 757 . . 2194 4843 552 819 1166 . 589 2553 . 2483 683 1472 815 15342 Guns 8314 | 76 235 30 753 377 . . 439 134 38 226 240 . 161 1635 . 817 341 754 603 1455 Cannons 20351 | . 219 . 128 . . . 1324 3959 514 80 400 . 199 518 . 1666 342 718 212 10072 Explosions 7816 | . 379 659 38 380 . . 431 750 . 513 526 . 229 400 . . . . . 3511 Melee 290 | . . . . . . . . . . . . . . . . . . . . 290 Ramming 14 | . . . . . . . . . . . . . . . . . . . . 14 Kinetic 20995 | . 354 30 490 377 . . 1324 4093 552 142 348 . 88 1200 . 1922 169 654 345 8907 Thermal 6143 | 76 100 . 125 27 . . 252 . . . 232 . 217 760 . 561 514 818 436 2025 Explosive 7153 | . 379 659 38 353 . . 179 750 . 473 480 . 229 102 . . . . . 3511 Electromagnetic 2190 | . . . 266 . . . 439 . . 204 106 . 55 491 . . . . 34 595 Impact . | . . . . . . . . . . . . . . . . . . . . . Slashing . | . . . . . . . . . . . . . . . . . . . . . Piercing 290 | . . . . . . . . . . . . . . . . . . . . 290 Highest Corruption 69 | . 5 5 . . . . . . . . . . . . . . 1 1 2 69 Average Corruption 9 | . 3 5 . . . . . . . . . . . . . . 1 1 1 21 Corruption Purged . | . . . . . . . . . . . . . . . . . . . . . Effects 210 | . 10 6 . . . . . . . . . . . . . . . 5 11 178 Message Errors 32 | . 4 3 . . . . . . . . . . . . . . . 3 3 19 Matter Fused 21 | . 1 2 . . . . . . . . . . . . . . . . . 18 Heat Flow Errors 11 | . 1 . . . . . . . . . . . . . . . . . 1 9 Energy Discharges 19 | . 2 . . . . . . . . . . . . . . . . 1 4 12 Parts Rejected 2 | . . . . . . . . . . . . . . . . . . . . 2 Data Loss (minor) 12 | . . . . . . . . . . . . . . . . . . 1 2 9 Data Loss (major) 3 | . . . . . . . . . . . . . . . . . . . . 3 Misfires 3 | . . 1 . . . . . . . . . . . . . . . . . 2 Alerts 1 | . . . . . . . . . . . . . . . . . . . . 1 Misdirections 25 | . . . . . . . . . . . . . . . . . . . . 25 Targeting Errors 64 | . 2 . . . . . . . . . . . . . . . . . 1 61 Weapon Failures 17 | . . . . . . . . . . . . . . . . . . . . 17 Overload Shots . | . . . . . . . . . . . . . . . . . . . . . Overflow Damage 1818 | . 4 14 . 14 . . 90 1095 25 41 5 . . 56 . 3 49 . 6 416 Projectiles 1479 | . . . . . . . 81 1063 25 . 5 . . 6 . 3 49 . 6 241 Explosions 339 | . 4 14 . 14 . . 9 32 . 41 . . . 50 . . . . . 175 Melee . | . . . . . . . . . . . . . . . . . . . . . Knockbacks 132 | . 1 . . . . . . 21 . . 2 . . 7 . 14 . 3 1 83 Impact . | . . . . . . . . . . . . . . . . . . . . . Kinetic 124 | . 1 . . . . . . 20 . . 2 . . 7 . 13 . 3 1 77 Secondary 8 | . . . . . . . . 1 . . . . . . . 1 . . . 6 Self-Inflicted Damage 570 | . 38 29 8 29 . . 106 132 . 19 . . . 141 . 43 . . . 25 Shots 17 | . 1 2 1 1 . . 2 3 . 1 . . . 3 . 1 . . . 2 Rammed 1 | . . . . . . . . . . . . . . . . . . . . 1 Targets Rammed 1 | . . . . . . . . . . . . . . . . . . . . 1 Kicked . | . . . . . . . . . . . . . . . . . . . . . Crushed . | . . . . . . . . . . . . . . . . . . . . . Highest Temperature 336 | 117 256 36 151 77 . . 9 3 . . 84 . 99 170 . 130 72 81 195 336 Average Temperature 60 | 62 46 25 43 29 . . 7 2 . . 37 . 33 55 . 42 34 35 34 84 Received Heat Transfer 2947 | . 159 100 57 105 . . 27 96 48 . 27 . 30 154 . 344 . 78 69 1653 Siege Activations . | . . . . . . . . . . . . . . . . . . . . . Robots Corrupted . | . . . . . . . . . . . . . . . . . . . . . Combat Hostiles . | . . . . . . . . . . . . . . . . . . . . . Parts Fried 9 | . . . 1 . . . 2 . . 5 . . . 1 . . . . . . Impact Corruptions 1 | . . . . . . . . 1 . . . . . . . . . . . . Robots Melted 2 | . . . . . . . . . . . . . . 1 . . . . . 1 Combat Hostiles 2 | . . . . . . . . . . . . . . 1 . . . . . 1 Parts Melted 10 | 1 2 . . . . . . . . . . . . 2 . . . 2 1 2 Heat Transferred 8236 | 222 296 . 370 50 . . 200 . . . 309 . 296 1210 . 850 555 1036 846 1996 Parts Sabotaged 7 | . . . . . . . . 5 . . . . . . . . . . . 2 Parts Stolen . | . . . . . . . . . . . . . . . . . . . . . Parts Stripped . | . . . . . . . . . . . . . . . . . . . . . Power Chain Reactions 7 | . . . . . . . 3 . . 1 1 . . 2 . . . . . . Missiles Intercepted . | . . . . . . . . . . . . . . . . . . . . . Alert | -11 -10 -10 -9 -9 -9 -8 -8 -8 -7 -7 -7 -7 -6 -6 -5 -5 -4 -4 -4 -3 ------- Run | Scr Mat Min Mat Min Exi Min Mat Gar Fac Low Low Dat Pro Fac Fac Gar Fac Gar Fac Res Peak Influence 1747 | 5 182 30 215 250 . . 244 1449 832 . . . . 425 217 746 638 686 489 1747 Initial 760 | . 3 12 3 . . . . 100 760 . . . . 173 177 25 391 308 359 180 Average 408 | 1 89 12 78 143 . . 119 796 759 . . . . 185 157 387 454 557 336 1005 Maximum Alert Level 5 | . . . 1 1 . . 1 4 3 . . . . 2 1 3 2 2 2 5 Low Security (%) 43 | 100 100 100 98 79 . 100 87 12 . . . . . 63 61 35 . . 4 3 Level 1 20 | . . . 1 20 . . 12 13 . . . . . 32 38 16 48 18 65 9 Level 2 17 | . . . . . . . . 9 9 . . . . 4 . 39 51 81 29 17 Level 3 11 | . . . . . . . . 34 90 . . . . . . 9 . . . 35 Level 4 3 | . . . . . . . . 29 . . . . . . . . . . . 11 Level 5 3 | . . . . . . . . . . . . . . . . . . . . 21 High Security . | . . . . . . . . . . . . . . . . . . . . . Max Security . | . . . . . . . . . . . . . . . . . . . . . Squads Dispatched 46 | . 1 . 2 . . . 1 . 2 . . . . 5 2 . 4 . 3 26 Investigation 6 | . . . 1 . . . . . . . . . . 2 . . 1 . 1 1 Extermination 12 | . . . . . . . . . 1 . . . . 2 1 . 2 . 2 4 Reinforcement 12 | . 1 . 1 . . . 1 . . . . . . 1 1 . . . . 7 Assault 8 | . . . . . . . . . 1 . . . . . . . 1 . . 6 Garrison 8 | . . . . . . . . . . . . . . . . . . . . 8 Intercept . | . . . . . . . . . . . . . . . . . . . . . Construction Impeded 6 | . . . . . . . . . . . . . . . . . . . . 6 Haulers Reinforced . | . . . . . . . . . . . . . . . . . . . . . Stealth | -11 -10 -10 -9 -9 -9 -8 -8 -8 -7 -7 -7 -7 -6 -6 -5 -5 -4 -4 -4 -3 --------- Run | Scr Mat Min Mat Min Exi Min Mat Gar Fac Low Low Dat Pro Fac Fac Gar Fac Gar Fac Res Distress Signals 8 | . 1 . 2 . . . . . . . . . . 1 . . . . . 4 Communications Jammed . | . . . . . . . . . . . . . . . . . . . . . Distress Signals . | . . . . . . . . . . . . . . . . . . . . . Times Spotted 334 | . 20 17 19 13 . . 11 30 5 4 9 . 8 25 1 31 4 26 13 98 Peak Tracking Total 15 | . 5 15 4 5 . . 4 6 2 4 4 . 4 4 1 10 3 4 4 10 Tactical Retreats 16 | . . 2 1 1 . . . 5 . . . . . . . 5 . . . 2 Traps | -11 -10 -10 -9 -9 -9 -8 -8 -8 -7 -7 -7 -7 -6 -6 -5 -5 -4 -4 -4 -3 ------- Run | Scr Mat Min Mat Min Exi Min Mat Gar Fac Low Low Dat Pro Fac Fac Gar Fac Gar Fac Res Traps Triggered 20 | . 5 . . . . . . 6 . . . . . 2 1 . . . 2 4 Indirectly . | . . . . . . . . . . . . . . . . . . . . . Trap Hack Attempts . | . . . . . . . . . . . . . . . . . . . . . Triggered . | . . . . . . . . . . . . . . . . . . . . . Disarmed . | . . . . . . . . . . . . . . . . . . . . . Reprogrammed . | . . . . . . . . . . . . . . . . . . . . . Reused . | . . . . . . . . . . . . . . . . . . . . . Traps Extracted . | . . . . . . . . . . . . . . . . . . . . . Installed . | . . . . . . . . . . . . . . . . . . . . . Triggered 1 | . . . . . . . . . . 1 . . . . . . . . . . Machines | -11 -10 -10 -9 -9 -9 -8 -8 -8 -7 -7 -7 -7 -6 -6 -5 -5 -4 -4 -4 -3 ---------- Run | Scr Mat Min Mat Min Exi Min Mat Gar Fac Low Low Dat Pro Fac Fac Gar Fac Gar Fac Res Machines Disabled 39 | . 1 1 2 2 . . 4 6 . . . . . 9 1 4 3 1 . 5 Max in Single Turn 3 | . 1 1 1 1 . . 3 2 . . . . . 3 . 2 2 1 . 2 Garrison Relay 7 | . . . . . . . . 4 . . . . . . . 2 . 1 . . Phase Generator 2 | . . . . . . . . 1 . . . . . . . 1 . . . . Machines Sabotaged . | . . . . . . . . . . . . . . . . . . . . . Garrisons Compromised . | . . . . . . . . . . . . . . . . . . . . . Overloaded Fab Kills . | . . . . . . . . . . . . . . . . . . . . . Fab Network Shutdowns . | . . . . . . . . . . . . . . . . . . . . . Hacking | -11 -10 -10 -9 -9 -9 -8 -8 -8 -7 -7 -7 -7 -6 -6 -5 -5 -4 -4 -4 -3 --------- Run | Scr Mat Min Mat Min Exi Min Mat Gar Fac Low Low Dat Pro Fac Fac Gar Fac Gar Fac Res Machines Accessed 40 | . 4 . 5 . 4 1 3 . 2 . . 4 . 10 1 . 3 . 1 2 Terminals 20 | . 4 . 4 . . 1 2 . 2 . . . . 3 . . 1 . 1 2 Fabricators 3 | . . . . . . . . . . . . . . 3 . . . . . . Repair Stations 3 | . . . . . . . . . . . . . . 2 . . 1 . . . Recycling Units 2 | . . . 1 . . . . . . . . . . 1 . . . . . . Scanalyzers 1 | . . . . . . . . . . . . . . 1 . . . . . . Garrison Access 3 | . . . . . . . 1 . . . . . . . 1 . 1 . . . Total Hacks 130 | . 5 . 8 . 43 2 4 . 2 . . 23 . 29 1 . 6 . 3 4 Successful 100 | . 2 . 4 . 43 1 4 . . . . 23 . 16 1 . 3 . 1 2 Failed 30 | . 3 . 4 . . 1 . . 2 . . . . 13 . . 3 . 2 2 Catastrophic 11 | . 1 . 3 . . . . . 2 . . . . 3 . . . . 1 1 Database Lockouts . | . . . . . . . . . . . . . . . . . . . . . Manual 30 | . 5 . 6 . 1 2 2 . 2 . . . . 6 . . 2 . 1 3 Terminals 38 | . 5 . 6 . . 2 3 . 2 . . . . 9 . . 4 . 3 4 Fabricators 8 | . . . . . . . . . . . . . . 8 . . . . . . Repair Stations 7 | . . . . . . . . . . . . . . 6 . . 1 . . . Recycling Units 6 | . . . 2 . . . . . . . . . . 4 . . . . . . Scanalyzers 2 | . . . . . . . . . . . . . . 2 . . . . . . Garrison Access 3 | . . . . . . . 1 . . . . . . . 1 . 1 . . . Terminal Hacks 82 | . 2 . 2 . 43 1 3 . . . . 23 . 3 . . 2 . 1 2 Record 59 | . . . . . 42 . . . . . . 11 . 2 . . 2 . 1 1 Part Schematic 5 | . . . . . . . . . . . . 5 . . . . . . . . Robot Schematic 4 | . . . . . . . . . . . . 4 . . . . . . . . Robot Analysis 1 | . . . . . . . 1 . . . . . . . . . . . . . Prototype ID Bank 3 | . . . . . . . . . . . . 3 . . . . . . . . Unreport Threat 9 | . 2 . 2 . . 1 2 . . . . . . 1 . . . . . 1 EX-Prototype ID Bank 1 | . . . . . 1 . . . . . . . . . . . . . . . Fabricator Hacks 5 | . . . . . . . . . . . . . . 5 . . . . . . Load Schematic 3 | . . . . . . . . . . . . . . 3 . . . . . . Build 2 | . . . . . . . . . . . . . . 2 . . . . . . Repair Station Hacks 5 | . . . . . . . . . . . . . . 5 . . . . . . Scan Component 3 | . . . . . . . . . . . . . . 3 . . . . . . Repair 2 | . . . . . . . . . . . . . . 2 . . . . . . Recycling Unit Hacks 3 | . . . 2 . . . . . . . . . . 1 . . . . . . Report Inventory 3 | . . . 2 . . . . . . . . . . 1 . . . . . . Scanalyzer 1 | . . . . . . . . . . . . . . 1 . . . . . . Insert Component 1 | . . . . . . . . . . . . . . 1 . . . . . . Garrison Access Hacks 3 | . . . . . . . 1 . . . . . . . 1 . 1 . . . Unlock Access 3 | . . . . . . . 1 . . . . . . . 1 . 1 . . . Unauthorized Hacks 1 | . . . . . . . . . . . . . . 1 . . . . . . Terminals 1 | . . . . . . . . . . . . . . 1 . . . . . . Assimilate 1 | . . . . . . . . . . . . . . 1 . . . . . . Fabricators . | . . . . . . . . . . . . . . . . . . . . . Repair Stations . | . . . . . . . . . . . . . . . . . . . . . Recycling Units . | . . . . . . . . . . . . . . . . . . . . . Scanalyzers . | . . . . . . . . . . . . . . . . . . . . . Garrison Access . | . . . . . . . . . . . . . . . . . . . . . Data Cores Recovered 4 | . 1 . . . . . . . 1 . . . . 1 1 . . . . . Used 1 | . 1 . . . . . . . . . . . . . . . . . . . Hacking Detections 22 | . 3 . 3 . . . 1 . 2 . . . . 7 1 . 2 . 1 2 Full Trace Events 5 | . . . . . . . . . . . . . . 2 . . 1 . 1 1 Feedback Events . | . . . . . . . . . . . . . . . . . . . . . Feedback Blocked . | . . . . . . . . . . . . . . . . . . . . . Robot Schematics Acquired 4 | . . . . . . . . . . . . 4 . . . . . . . . Robots Built 4 | . . . . . . . . . . . . . . 4 . . . . . . Matter 603 | . . . . . . . . . . . . . . 603 . . . . . . Time 245 | . . . . . . . . . . . . . . 245 . . . . . . Total Robot Build Rating 21 | . . . . . . . . . . . . . . 21 . . . . . . Part Schematics Acquired 5 | . . . . . . . . . . . . 5 . . . . . . . . Parts Built . | . . . . . . . . . . . . . . . . . . . . . Matter . | . . . . . . . . . . . . . . . . . . . . . Time . | . . . . . . . . . . . . . . . . . . . . . Total Part Build Rating . | . . . . . . . . . . . . . . . . . . . . . Parts Repaired 2 | . . . . . . . . . . . . . . 2 . . . . . . Time 64 | . . . . . . . . . . . . . . 64 . . . . . . Parts Recycled . | . . . . . . . . . . . . . . . . . . . . . Recycled Matter . | . . . . . . . . . . . . . . . . . . . . . Retrieved Matter . | . . . . . . . . . . . . . . . . . . . . . Retrieved Components . | . . . . . . . . . . . . . . . . . . . . . Parts Scanalyzed 1 | . . . . . . . . . . . . . . 1 . . . . . . Part Schematics Acquired . | . . . . . . . . . . . . . . . . . . . . . Parts Damaged . | . . . . . . . . . . . . . . . . . . . . . Bothacking | -11 -10 -10 -9 -9 -9 -8 -8 -8 -7 -7 -7 -7 -6 -6 -5 -5 -4 -4 -4 -3 ------------ Run | Scr Mat Min Mat Min Exi Min Mat Gar Fac Low Low Dat Pro Fac Fac Gar Fac Gar Fac Res Used RIF Installer 3 | . . . . . . . . 1 . . . . . . . 1 . 1 . . Command Fork 1 | . . . . . . . . . . . . . . . . 1 . . . . Robot Detection 1 | . . . . . . . . . . . . . . . . . . 1 . . Robots Hacked 27 | . . . . . 4 . . . 1 . . 1 . 1 . 5 . 10 2 3 Non-combat 5 | . . . . . 3 . . . . . . . . . . . . . 2 . Combat 22 | . . . . . 1 . . . 1 . . 1 . 1 . 5 . 10 . 3 Robot Hacks Applied 31 | . . . . . 4 . . . 2 . . 1 . 1 . 5 . 10 5 3 parse_system 6 | . . . . . 4 . . . . . . 1 . . . . . . 1 . find_fabricator 1 | . . . . . . . . . . . . . . . . . . . 1 . drop_inventory 1 | . . . . . . . . . . . . . . . . . . . 1 . locate_stockpiles 1 | . . . . . . . . . . . . . . . . . . . 1 . spike_heat 1 | . . . . . . . . . . . . . . . . . . . . 1 overload_power 2 | . . . . . . . . . . . . . . . . 2 . . . . go_dormant 2 | . . . . . . . . . . . . . . . . . . 2 . . overwrite_iff 1 | . . . . . . . . . 1 . . . . . . . . . . . streamctrl_high 2 | . . . . . . . . . 1 . . . . . . . . 1 . . formatsys_high 14 | . . . . . . . . . . . . . . 1 . 3 . 7 1 2 Relay Couplers Released 31 | . . . . . . . . 15 . . . . . . . 9 . 4 . 3 Machine Destruction 28 | . . . . . . . . 15 . . . . . . . 9 . 4 . . Programmers 3 | . . . . . . . . . . . . . . . . . . . . 3 Attached 11 | . . . . . . . . . 1 . . . . 1 . 2 . 4 1 2 Robots Rewired . | . . . . . . . . . . . . . . . . . . . . . Allies Hacked . | . . . . . . . . . . . . . . . . . . . . . Hacks Repelled . | . . . . . . . . . . . . . . . . . . . . . Allies | -11 -10 -10 -9 -9 -9 -8 -8 -8 -7 -7 -7 -7 -6 -6 -5 -5 -4 -4 -4 -3 -------- Run | Scr Mat Min Mat Min Exi Min Mat Gar Fac Low Low Dat Pro Fac Fac Gar Fac Gar Fac Res Total Allies 31 | . . 3 . 3 . . . . 1 . . . 1 6 . 3 . 10 1 3 Largest Group 6 | . . 3 . 3 2 . . . 1 . . . 1 5 5 3 . 6 6 2 Highest-Rated Group 286 | . . 40 . 75 44 . . . 32 . . . 94 179 171 110 . 286 286 128 Highest-Rated Ally 94 | . . 16 . 31 28 . . . 32 . . . 94 60 60 60 . 49 49 64 Total Orders 4 | . . . . . . . . . . . . . . 1 . 3 . . . . STAY 1 | . . . . . . . . . . . . . . . . 1 . . . . ROAM 1 | . . . . . . . . . . . . . . 1 . . . . . . FOLLOW 2 | . . . . . . . . . . . . . . . . 2 . . . . Ally Attacks 145 | . . 12 . 12 . . . . 1 . . . 16 5 8 17 . 26 39 9 Total Damage 4023 | . . 128 . 210 . . . . 43 . . . 485 123 335 317 . 663 1312 407 Kills 29 | . . . . 5 . . . . . . . . 3 2 3 1 . 5 8 2 Allies Corrupted . | . . . . . . . . . . . . . . . . . . . . . Allies Melted 1 | . . 1 . . . . . . . . . . . . . . . . . . Intel | -11 -10 -10 -9 -9 -9 -8 -8 -8 -7 -7 -7 -7 -6 -6 -5 -5 -4 -4 -4 -3 ------- Run | Scr Mat Min Mat Min Exi Min Mat Gar Fac Low Low Dat Pro Fac Fac Gar Fac Gar Fac Res Robot Analysis Total 1 | . . . . . . . 1 . . . . . . . . . . . . . Derelict Logs Recovered 7 | . . 1 . 1 . . . . . 3 1 . 1 . . . . . . . Drone Launches . | . . . . . . . . . . . . . . . . . . . . . Drone Recoveries . | . . . . . . . . . . . . . . . . . . . . . Exploration | -11 -10 -10 -9 -9 -9 -8 -8 -8 -7 -7 -7 -7 -6 -6 -5 -5 -4 -4 -4 -3 ------------- Run | Scr Mat Min Mat Min Exi Min Mat Gar Fac Low Low Dat Pro Fac Fac Gar Fac Gar Fac Res Turns Passed 16310 | 66 824 336 1028 899 453 88 688 917 440 1159 261 105 274 2284 520 1216 508 897 1144 2203 Spaces Moved 10000 | 48 740 320 809 786 411 73 456 534 288 794 163 96 198 1133 300 616 272 438 643 882 Core 15 | 1 . . . . . . . . . . . . . . . . . . . 14 Treads 4164 | . . . . . . . . 6 6 . 31 . 7 977 300 616 272 438 643 868 Legs . | . . . . . . . . . . . . . . . . . . . . . Wheels 5821 | 47 740 320 809 786 411 73 456 528 282 794 132 96 191 156 . . . . . . Hover . | . . . . . . . . . . . . . . . . . . . . . Flight . | . . . . . . . . . . . . . . . . . . . . . Fastest Speed 50 | 50 80 90 100 100 100 120 110 125 125 125 105 105 105 93 160 160 160 160 160 50 Average Speed 131 | 79 89 93 100 100 105 120 121 126 133 134 128 105 108 152 160 160 160 162 160 163 Slowest Speed 260 | 80 90 100 100 100 120 120 125 260 240 135 200 105 200 200 160 160 160 180 160 180 Overloaded Moves . | . . . . . . . . . . . . . . . . . . . . . Propulsion Burnouts . | . . . . . . . . . . . . . . . . . . . . . Robots Hopped . | . . . . . . . . . . . . . . . . . . . . . Cave-ins Triggered . | . . . . . . . . . . . . . . . . . . . . . Exploration Rate (%) 46 | 3 97 72 51 99 72 23 38 76 8 84 35 75 46 31 5 63 5 66 10 21 Regions Visited 20 Branch Regions 8 Pre-discovered Areas 4 | . . . . 1 1 . . . . . . 1 1 . . . . . . . Known Exits Taken 4 | . . . . . . 1 1 . . . . . . . 1 . 1 . . . Unknown Exits Taken 13 | 1 1 1 1 1 1 . . . 1 1 1 1 1 1 . . . . 1 . Scrap Searched 4 | . . 1 . 1 . . . . . . 1 . 1 . . . . . . . Spaces Dug 20 | . . . 3 5 . . . 7 . . . . . . . . 1 . . 4 Terrain Destroyed 907 | . 25 26 13 50 . . 71 149 . 19 59 . 52 44 . 86 57 5 10 241 Melee 1 | . . . . . . . . . . . . . . . . . 1 . . . Projectile 198 | . . . 8 . . . 4 26 . 5 3 . 1 7 . 12 14 5 10 103 AOE 708 | . 25 26 5 50 . . 67 123 . 14 56 . 51 37 . 74 42 . . 138 Terrain Rammed . | . . . . . . . . . . . . . . . . . . . . . Walls Destroyed . | . . . . . . . . . . . . . . . . . . . . . Machines Disabled . | . . . . . . . . . . . . . . . . . . . . . Actions | -11 -10 -10 -9 -9 -9 -8 -8 -8 -7 -7 -7 -7 -6 -6 -5 -5 -4 -4 -4 -3 --------- Run | Scr Mat Min Mat Min Exi Min Mat Gar Fac Low Low Dat Pro Fac Fac Gar Fac Gar Fac Res Total 12238 | 66 847 346 943 862 427 73 555 740 337 843 189 98 232 1608 340 763 319 577 731 1342 Wait 1028 | . 22 17 49 52 . . 11 87 22 12 1 . 20 369 32 64 7 83 32 148 Move 9980 | 47 739 319 808 785 410 72 456 532 287 793 162 95 197 1132 299 614 272 437 642 882 Hop . | . . . . . . . . . . . . . . . . . . . . . Pick Up 154 | 8 18 1 15 1 1 . 18 13 6 . 3 . . 13 2 7 3 5 9 31 Fast Attach 81 | 7 3 . . 2 1 . 1 3 2 1 . . . 18 2 5 7 1 5 23 Attach 59 | . . 2 3 . . . 4 3 1 1 3 . 1 5 2 1 1 4 . 28 Detach 18 | . . . 1 1 . . 1 . . . 1 . . 1 . 1 2 1 1 8 Swap 167 | . 14 1 12 2 5 1 5 16 7 5 2 2 2 11 1 17 6 11 11 36 Drop 189 | 1 20 1 13 2 6 . 16 11 6 . 2 . 1 22 2 13 10 3 13 47 Fire 470 | 3 31 5 42 17 . . 43 23 6 20 15 1 11 37 . 37 10 27 18 124 Melee 35 | . . . . . 4 . . 5 . 9 . . . . . 2 1 1 . 13 Ram 1 | . . . . . . . . . . . . . . . . . . . . 1 Kick . | . . . . . . . . . . . . . . . . . . . . . Crush 1 | . . . . . . . . . . . . . . . . . . . . 1 Escape Stasis 49 | . . . . . . . . 47 . . . . . . . 2 . . . . Rewire 6 | . . . . . . . . . . 2 . . . . . . . 4 . . Trap . | . . . . . . . . . . . . . . . . . . . . . Miscellaneous . | . . . . . . . . . . . . . . . . . . . . . Route ------- -11/Scrapyard -10/Materials (discovered 5 exits: *Mat x3 / [*Min x2]) -10/Mines -9/Materials (discovered 4 exits: *Mat / [*Min] / [*Sto x2]) -9/Mines (discovered 3 exits: *Mat x2 / *Exi) -9/Exiles -8/Mines -8/Materials (discovered 2 exits: *Fac / Gar) -8/Garrison (discovered 2 exits: *Fac x2) -7/Factory -7/Lower Caves -7/Lower Caves -7/Data Miner -6/Proximity Caves -6/Factory (discovered 4 exits: *Fac / *Low x2 / Ext) -5/Factory -5/Garrison -4/Factory (discovered 2 exits: *Res / Gar) -4/Garrison (discovered 2 exits: *Fac x2) -4/Factory -3/Research History --------- Turn | Location | Event 26 | -11/Scrapyard | Discovered new exit (range 16) 67 | -11/Scrapyard | Entered Materials 230 | -10/Materials | Discovered new exit (range 15) 303 | -10/Materials | Build established: Mutant 337 | -10/Materials | Discovered new exit (range 7) 428 | -10/Materials | Discovered new exit (range 12) 556 | -10/Materials | Discovered new exit (range 15) 692 | -10/Materials | Discovered new exit (range 15) 891 | -10/Materials | Entered Mines 922 | -10/Mines | Assisted by bots powering up and referring to "LRC-V3" 973 | -10/Mines | Received a Rocket Launcher from a helpful Derelict 1069 | -10/Mines | Assembled infested the area 1074 | -10/Mines | Assisted by a Guerilla fighting off Assembled 1128 | -10/Mines | Destroyed 10 combat bots 1185 | -10/Mines | Learned location of 1 exit from Materials 1212 | -10/Mines | Discovered new exit (range 10) 1227 | -10/Mines | Entered Materials 1227 | -9/Materials | Evolved 2 slots: Weapon x2 1228 | -9/Materials | Identified exit to Materials 1273 | -9/Materials | Discovered new exit (range 16) 1600 | -9/Materials | Discovered new exit (range 6) 1797 | -9/Materials | Discovered new exit (range 13) 2255 | -9/Materials | Entered Mines 2289 | -9/Mines | Learned Materials stockpile data 2344 | -9/Mines | Build established: Scavenger-Gunner 2391 | -9/Mines | Escorted by a lone wolf Derelict 2411 | -9/Mines | Learned location of Storage (-9) 2467 | -9/Mines | Discovered exit to Materials (range 7) 2594 | -9/Mines | Discovered exit to Materials (range 8) 3109 | -9/Mines | Deemed a non-threat by the Exiles lab entrance 3140 | -9/Mines | Discovered new exit (range 5) 3154 | -9/Mines | Entered Exiles 3154 | -9/Exiles | Accompanied by 2 allies 3179 | -9/Exiles | Met 8R-AWN 3195 | -9/Exiles | Met EX-HEX 3261 | -9/Exiles | Met EX-DEC 3287 | -9/Exiles | Learned location of Zion (-6) 3394 | -9/Exiles | Met EX-BIN 3412 | -9/Exiles | Aligned with FarCom system 3413 | -9/Exiles | Given EX-Vault access code 3449 | -9/Exiles | Opened EX-Vault 3461 | -9/Exiles | Found AWS/Autocannon 3486 | -9/Exiles | Warned to stay clear of 0b10 Research branches 3501 | -9/Exiles | Build established: Scavenger-Mutant 3591 | -9/Exiles | Discovered new exit (range 12) 3607 | -9/Exiles | Left Exiles lab with AWS/Autocannon 3607 | -9/Exiles | Entered Mines 3677 | -8/Mines | Discovered exit to Materials (range 15) 3695 | -8/Mines | Entered Materials 3695 | -8/Materials | Evolved 2 slots: Propulsion x1, Utility x1 4228 | -8/Materials | Discovered new exit (range 5) 4383 | -8/Materials | Identified exit to Garrison 4383 | -8/Materials | Entered Garrison 4452 | -8/Garrison | Triggered checkpoint 4550 | -8/Garrison | Garrison Relay disabled 4628 | -8/Garrison | Triggered checkpoint 4658 | -8/Garrison | Destroyed 7 combat bots 4689 | -8/Garrison | Triggered checkpoint 4765 | -8/Garrison | Destroyed 7 combat bots 4768 | -8/Garrison | Discovered new exit (range 13) 4846 | -8/Garrison | Triggered checkpoint 4858 | -8/Garrison | Build established: Skirmisher 4877 | -8/Garrison | Garrison Relay disabled 5027 | -8/Garrison | Phase Generator disabled 5027 | -8/Garrison | Discovered new exit (range 15) 5112 | -8/Garrison | Garrison Relay disabled 5188 | -8/Garrison | Triggered checkpoint 5211 | -8/Garrison | Garrison Relay disabled 5294 | -8/Garrison | Installed Relay Interface Framework 5300 | -8/Garrison | Entered Factory 5300 | -7/Factory | Evolved 2 slots: Utility x2 5592 | -7/Factory | Discovered new exit (range 5) 5700 | -7/Factory | First assault squad dispatched 5740 | -7/Factory | Entered Lower Caves 5849 | -7/Lower Caves | Learned Factory emergency access door positions 5876 | -7/Lower Caves | Learned 12 Factory zone layouts 6038 | -7/Lower Caves | Build established: Bothacker-Gunner 6073 | -7/Lower Caves | Learned Factory stockpile data 6399 | -7/Lower Caves | Discovered new exit (range 15) 6899 | -7/Lower Caves | Entered another Lower Caves area 7008 | -7/Lower Caves | Encountered a Warlord checkpoint 7031 | -7/Lower Caves | Learned Factory emergency access door positions 7133 | -7/Lower Caves | Discovered new exit (range 9) 7160 | -7/Lower Caves | Entered Data Miner 7160 | -7/Data Miner | Discovered new exit (range 6) 7180 | -7/Data Miner | Met Data Miner 7216 | -7/Data Miner | Learned location of Section 7 (-3) 7216 | -7/Data Miner | Acquired the access code to Warlord's prototype stash 7236 | -7/Data Miner | Received God Mode back door access code from Data Miner 7265 | -7/Data Miner | Entered Proximity Caves 7303 | -6/Proximity Caves | Escorted by Enhanced Grunt 7400 | -6/Proximity Caves | Attracted the attention of an 0b10 checkpoint 7530 | -6/Proximity Caves | Discovered new exit (range 10) 7539 | -6/Proximity Caves | Entered Factory 7539 | -6/Factory | Evolved 2 slots: Propulsion x1, Utility x1 7540 | -6/Factory | Identified exit to Lower Caves 7540 | -6/Factory | Identified exit to Extension 7647 | -6/Factory | Repaired Cooling System 7680 | -6/Factory | Repaired Rocket Launcher 7913 | -6/Factory | Incoming investigation squad redirected 8050 | -6/Factory | Build established: Bothacker-Skirmisher 8666 | -6/Factory | Fabricated I-47 Archangel? 8862 | -6/Factory | Incoming investigation squad redirected 9515 | -6/Factory | Fabricated G-50 Soldier (x3) 9628 | -6/Factory | Discovered new exit (range 13) 9807 | -6/Factory | Build established: Commander-Skirmisher 9823 | -6/Factory | Entered another Factory area 9823 | -5/Factory | Accompanied by 5 allies 9823 | -5/Factory | Evolved 2 slots: Utility x2 10319 | -5/Factory | Build established: Gunner 10326 | -5/Factory | Identified exit to Garrison 10343 | -5/Factory | Entered Garrison 10343 | -5/Garrison | Accompanied by 2 allies 10351 | -5/Garrison | Expanded RIF knowledge: Command Fork 10516 | -5/Garrison | Triggered checkpoint 10655 | -5/Garrison | Garrison Relay disabled 10769 | -5/Garrison | Phase Generator disabled 10834 | -5/Garrison | Spotted B-75 Beast 10879 | -5/Garrison | Destroyed B-75 Beast 11027 | -5/Garrison | Destroyed 8 combat bots 11172 | -5/Garrison | Triggered checkpoint 11236 | -5/Garrison | Discovered new exit (range 13) 11438 | -5/Garrison | Triggered checkpoint 11448 | -5/Garrison | Garrison Relay disabled 11559 | -5/Garrison | Entered Factory 11559 | -4/Factory | Evolved 2 slots: Utility x2 11703 | -4/Factory | Found Quantum Capacitor 11801 | -4/Factory | Discovered new exit (range 12) 11841 | -4/Factory | First assault squad dispatched 11909 | -4/Factory | Build established: Bothacker-Gunner 12064 | -4/Factory | Identified exit to Garrison 12067 | -4/Factory | Entered Garrison 12138 | -4/Garrison | Triggered checkpoint 12353 | -4/Garrison | Garrison Relay disabled 12374 | -4/Garrison | Triggered checkpoint 12542 | -4/Garrison | Triggered checkpoint 12594 | -4/Garrison | Triggered checkpoint 12672 | -4/Garrison | Discovered new exit (range 8) 12695 | -4/Garrison | Expanded RIF knowledge: Robot Detection 12832 | -4/Garrison | Discovered new exit (range 9) 12923 | -4/Garrison | Build established: Scavenger-Gunner 12964 | -4/Garrison | Entered Factory 12964 | -4/Factory | Accompanied by 6 allies 13288 | -4/Factory | Discovered new exit (range 14) 13613 | -4/Factory | Found Hvy. Reactive Plating 14108 | -4/Factory | Entered Research 14108 | -3/Research | Evolved 2 slots: Power x1, Propulsion x1 14485 | -3/Research | Found Prototype Protection 14494 | -3/Research | Identified Centrium Heavy Armor Plating 14594 | -3/Research | Found Fusion Bomb Launcher 14608 | -3/Research | First assault squad dispatched 14616 | -3/Research | Garrison activated, responded to threat 14627 | -3/Research | Incoming assault squad redirected 14792 | -3/Research | Found Fusion Bomb Launcher 14864 | -3/Research | Found Centrium Heavy Armor Plating 14929 | -3/Research | System corruption reached 10% 14946 | -3/Research | Build established: Gunner 14977 | -3/Research | Incoming assault squad redirected 14999 | -3/Research | Found Centrium Heavy Armor Plating 15185 | -3/Research | Incoming investigation squad redirected 15225 | -3/Research | Incoming assault squad redirected 15666 | -3/Research | Garrison activated, responded to threat 15723 | -3/Research | Destroyed 11 combat bots 15734 | -3/Research | Lost 3 parts (1p2u) 15745 | -3/Research | System corruption reached 30% 15775 | -3/Research | Garrison activated, responded to threat 15885 | -3/Research | Incoming assault squad redirected 15893 | -3/Research | Lost 5 parts (1n3u1w) 15907 | -3/Research | Garrison activated, responded to threat 16111 | -3/Research | Lost 6 parts (1p1n4u) 16171 | -3/Research | Lost 3 parts (2u1w) 16218 | -3/Research | Core integrity fell below 50% 16297 | -3/Research | Core integrity fell below 20% 16311 | -3/Research | Destroyed by Y-72 Warden with Quantum Rifle Last Messages --------------- 16266_ Penetrated by Slug. 16266_ Slug penetrates Wall. 16268_ Centrium Heavy Treads destroyed. 16270_ Penetrated by Slug. 16271_ U-05 Engineer builds a Wall. 16272_ Slug penetrates L-61 Swordsman. 16272_ Penetrated by Slug. 16272_ Imp. Heavy Siege Treads destroyed. 16278_ U-05 Engineer builds a Door. 16279_ System corrupted: Com. Mass Driver targeting data glitched. 16279_ R-10 Processor knocked back. 16283_ System corrupted: Matter fused (-7). 16285_ U-05 Engineer builds a Door. 16298_ Lrg. Storage Unit destroyed. 16300_ System corrupted: Matter fused (-6). 16303_ Dropped Lrg. Storage Unit. 16303_ Dropped Com. Mass Driver. 16304_ Dropped Imp. Heavy Siege Treads. 16307_ P-80 Master resets P-80 Master, system corruption cleaned. 16309_ Penetrated by Slug. Map ----- +----------------------------------------------------+ | ????????????????????????????????????? ?# | | ???????????????????????????????????? ?######## | | ???????????????????????????????????##?????????# | | ??????????????????????????????????????????????# | | ??????????????????????????????????????????????# | | ??????????????????????????????????????????????# | | ??????????????????????????????????????????????# ^ | | ??????????????????????????????????????????????# | | ??????????????????????????????????????????????#### | | ?????????????????????????????????????????????????# | | ??????????????????????? ???????????????????????# | | ??????????????????????? ???????????????????????# | | ?????????????????????? ???????????????????????# | | ?????????????????????# ??????????????????????? | | ?????????????????????? ???????????????????????# | | ?????????????????????? ???????????????????????# | | ?????????????????????? ???????????????????????# | | ??????????????????????? #??????????????????????# | | ??????????????????????? #???????????????######## | | ??????????????????????? #???????????????# + | | ??????????????????????? #???????????????# # | | ???????????????????????? +???????????????# # | | ????????????????????????#u#???????????????# # | | ????????????????????????# #######?????????# # | | ????????????????????????+ #??????#### # | | ????????????????????????#@ #?????## ## ##/### | | ????????????????????????# #?????# ## | | ??????????????????????###^ #?????# / | | ??????????????????????# #?????# !! # | | ??????????????????????# l #?????# !! # # | | ??????????????????????# [= #?????# + | | ??????????????????????# Y p!Y #?????# # | | ??????????????????????# p !] ########/##+## | | ????????????????????#####+#####p C w | | ????????????????????# #################### | | ????????????????????# #?????##???????????? | | ????????????????????# #??????????????????? | | ????????????????????# = #??????????????????? | | ????????????????????###########??????????????????? | | | | | | | | | | | | | | | | | | | | | | | +----------------------------------------------------+ Best States ------------- Heat Dissipation 140 Coolant Potential 100 Energy Generation 41 Energy Capacity 565 Matter Stores 300 Matter Capacity 300 Sight Range 20 Terrain Scan Density 10 Armor Coverage 1200 Resistance: KI 40 Propulsion Shielding 66 Weapon Cycling 15 Phase Shifting 10 Evasion (%) 50 Targeting Accuracy 16 Target Analysis 6 Core Analysis 10 Recoil Reduction 5 Particle Charging 30 Offensive Hacking 10 Relay Coupler Types 43 Relay Coupler Value 1 Item Schematics ----------------- Combat Drone Bay | -7/Data Miner | Free Lgt. Regenerative Plating | -7/Data Miner | Free Exp. Flexi-carbon Leg | -7/Data Miner | Free Exp. Terrain Scanner | -7/Data Miner | Free Cloaking Device | -7/Data Miner | Free Robot Schematics ------------------ S-27 Virus | -7/Data Miner | Free G-50 Soldier | -7/Data Miner | Free I-36 Angel | -7/Data Miner | Free I-47 Archangel | -7/Data Miner | Free Fabricated ------------ I-47 Archangel | x1 | -6/Factory G-50 Soldier | x3 | -6/Factory Alien Tech Used ----------------- None Achievements -------------- Assimilation Complete Error 47 I Survived The Infestation My Command Is Your Wish Oh No You Don't! True Hacker Z1$+NX3F=JRE3_ZNQR Challenges ------------ None Game ------ Seed EnergyThunderScanner Manual? 0 Play Time 04:55:52 Cumulative 61.3 hours Start 2021.12.03 @ 15:44:07 End 2021.12.03 @ 20:57:05 Sessions 1 Manual Loads 0 Difficulty Rogue Special Mode None Game No. 17 Rogue 17 Adventurer 0 Explorer 0 Win Type - Total 0 Types 0/0/0/0/0/0/0/0/0 Lore% 30 Gallery% 43 Achievement% 30 Wizard Run 0 Options --------- ASCII 1 Keyboard 1 Movement Numpad Keybinds 0 Fullscreen 1 Font 36/Smallcaps Map View 76x50 Tactical HUD 1 Map Filters NONE Filters NONE Steam 1 RUN: cc59066b-dd30-4ae5-a710-adb938546a3d